Workbook

Sheet Inicio DM
A23: Descargue la versión Kindle
K32: Miguel Cervantes Jiménez

Sheet DemAgreg DM (hidden)
A1: DEMANDA DEL MERCADO
A3: AGREGACIÓN DE DEMANDAS INDIVIDUALES
C8: DEMANDAS INDIVIDUALES
C9: xd | D9: b0 | E9: b1 | F9: P
B10: Consumidor 1 | C10: ='Oculto DM'!D26 -> 0.0 | D10: 40.0 | E10: -2.0 | F10: 40.0
B11: Consumidor 2 | C11: ='Oculto DM'!D27 -> 0.0 | D11: 120.0 | E11: -4.0 | F11: =F10 -> 40.0
B12: Consumidor 3 | C12: ='Oculto DM'!D28 -> 70.0 | D12: 110.0 | E12: -1.0 | F12: =F11 -> 40.0
B13: Consumidor 4 | C13: ='Oculto DM'!D29 -> 30.0 | D13: 150.0 | E13: -3.0 | F13: =F12 -> 40.0
B14: Consumidor 5 | C14: ='Oculto DM'!D30 -> 150.0 | D14: 250.0 | E14: -2.5 | F14: =F13 -> 40.0
B15: Demanda del mercado | C15: =SUM(C10:C14) -> 250.0 | D15: Inserte los datos correspondientes
B22: Títulos
B23: Resultados
B24: Insertar datos

Sheet Elasticidad Punto DM (hidden)
A1: DEMANDA DEL MERCADO
A3: ELASTICIDAD PRECIO DE LA DEMANDA
B5: PARÁMETROS DE FUNCIÓN DE DEMANDA
B6: x1 | C6: b0 | D6: b1 | E6: P1
B7: ='Oculto DM'!X26 -> 100.0 | C7: 200.0 | D7: -2.0 | E7: 50.0
C8: Insertar los datos correspondientes
B10: ELEMENTOS DE LA ELASTICIDAD PRECIO DE LA DEMANDA
B11: DX / DP | C11: P / X | D11: EPX | E11: Tipo
B12: ='Oculto DM'!X29 -> -2.0 | C12: ='Oculto DM'!Y29 -> 0.5 | D12: ='Oculto DM'!Z29 -> -1.0 | E12: ='Oculto DM'!AA29 -> UNITARIA
J13: =C7+(D7*B22) -> 100
B21: Precio al que la elasticidad es UNITARIA
B22: ='Oculto DM'!AC26 -> 50.0
B25: Títulos
B26: Resultados
B27: Insertar datos

Sheet ElastTodas DM (hidden)
B1: DEMANDA PARAMÉTRICA DEL MERCADO
B3: x1 | C3: b0 | D3: b1 | E3: P1 | F3: b2 | G3: m | H3: b3 | I3: P2
B4: ='Oculto DM'!BQ4 -> 578.0 | C4: 600.0 | D4: -10.0 | E4: 57.2 | F4: 0.1 | G4: 5,000.0 | H4: 4.0 | I4: 50.0
D5: Epx | E5: ='Oculto DM'!BT5 -> -1.0 | F5: Emx | G5: ='Oculto DM'!BV5 -> 0.6 | H5: Epp | I5: ='Oculto DM'!BX5 -> 0.3
D6: Demanda | E6: ='Oculto DM'!BT6 -> INELÁSTICA | F6: Bien | G6: ='Oculto DM'!BV6 -> NORMAL | H6: Bien | I6: ='Oculto DM'!BX6 -> SUSTITUTO
B8: P1 | C8: OalO | D8: Pendiente | E8: x1
B9: ='Oculto DM'!BS11 -> 113.0 | C9: ='Oculto DM'!BT11 -> 115.0 | D9: ='Oculto DM'!BU11 -> -0.1 | E9: 20.0
B54: Títulos | C54: Resultados | D54: Insertar datos

Sheet Elasticidades DM (hidden)
A1: DEMANDA DEL MERCADO
A3: ELASTICIDADES ARCO
K6: ELASTICIDAD
K7: Punto inicial | L7: ARCO | M7: Punto final
C8: XI | D8: XF | E8: PI | F8: PF | K8: EPX | L8: EPX | M8: EPX
B9: ELASTICIDAD PRECIO DE LA DEMANDA | C9: 100.0 | D9: 250.0 | E9: 10.0 | F9: 5.0 | K9: ='Oculto DM'!AP3 -> -3.0 | L9: ='Oculto DM'!AQ3 -> -1.3 | M9: ='Oculto DM'!AR3 -> -0.6
C10: Inserte los datos correspondientes | J10: TIPOLOGÍA | K10: ='Oculto DM'!AP4 -> DEMANDA ELÁSTICA | L10: ='Oculto DM'!AQ4 -> DEMANDA ELÁSTICA | M10: ='Oculto DM'!AR4 -> DEMANDA INELÁSTICA
K13: Punto inicial | L13: ARCO | M13: Punto final
C14: XI | D14: XF | E14: mI | F14: mF | K14: EMX | L14: EMX | M14: EMX
B15: ELASTICIDAD INGRESO DE LA DEMANDA | C15: 90.0 | D15: 80.0 | E15: 1,000.0 | F15: 1,200.0 | K15: ='Oculto DM'!AP7 -> -0.6 | L15: ='Oculto DM'!AQ7 -> -0.6 | M15: ='Oculto DM'!AR7 -> -0.8
C16: Inserte los datos correspondientes | J16: TIPOLOGÍA | K16: ='Oculto DM'!AP8 -> BIEN INFERIOR | L16: ='Oculto DM'!AQ8 -> BIEN INFERIOR | M16: ='Oculto DM'!AR8 -> BIEN INFERIOR
K18: Punto inicial | L18: ARCO | M18: Punto final
C19: XI | D19: XF | E19: PBR I | F19: PBR F | K19: EPP | L19: EPP | M19: EPP
B20: ELASTICIDAD PRECIO CRUZADO DE LA DEMANDA | C20: 200.0 | D20: 330.0 | E20: 100.0 | F20: 150.0 | K20: ='Oculto DM'!AP11 -> 1.3 | L20: ='Oculto DM'!AQ11 -> 1.2 | M20: ='Oculto DM'!AR11 -> 1.2
C21: Inserte los datos correspondientes | J21: TIPOLOGÍA | K21: ='Oculto DM'!AP12 -> BIEN SUSTITUTO | L21: ='Oculto DM'!AQ12 -> BIEN SUSTITUTO | M21: ='Oculto DM'!AR12 -> BIEN SUSTITUTO
B22: Títulos
B23: Resultados
B24: Insertar datos

Sheet ElasticIngreso DM (hidden)
B1: DEMANDA DEL MERCADO
B3: ELASTICIDAD PRECIO DE LA DEMANDA
B4: Y LA VARIACIÓN DEL INGRESO TOTAL
C6: PARÁMETROS DE FUNCIÓN DE DEMANDA
C7: x1 | D7: b0 | E7: b1 | F7: P1
B8: A | C8: ='Oculto DM'!BA26 -> 50.0 | D8: 100.0 | E8: -2.0 | F8: 25.0
B9: B | C9: ='Oculto DM'!BA27 -> 50.0 | D9: ='Oculto DM'!BB27 -> 100.0 | E9: ='Oculto DM'!BC27 -> -2.0 | F9: 25.0
C14: ELEMENTOS DE LA ELASTICIDAD PRECIO DE LA DEMANDA
C15: DX / DP | D15: P / X | E15: EPX | F15: Tipo
C16: ='Oculto DM'!BA29 -> 0.0 | D16: ='Oculto DM'!BB29 -> 0.5 | E16: ='Oculto DM'!BC29 -> -1.0 | F16: ='Oculto DM'!BD29 -> UNITARIA
C18: Precio al que la elasticidad es UNITARIA
C19: ='Oculto DM'!BF26 -> 25.0
C21: Precio | D21: Cantidad | E21: Ingreso Total
B22: A | C22: ='Oculto DM'!BA33 -> 25.0 | D22: ='Oculto DM'!BB33 -> 50.0 | E22: ='Oculto DM'!BC33 -> 1,250.0
B23: B | C23: ='Oculto DM'!BA34 -> 25.0 | D23: ='Oculto DM'!BB34 -> 50.0 | E23: ='Oculto DM'!BC34 -> 1,250.0
B24: D | C24: =C23-C22 -> 0.0 | D24: =D23-D22 -> 0.0 | E24: =E23-E22 -> 0.0
C49: Títulos
C50: Resultados
C51: Insertar datos

Sheet Oculto DM (hidden)
C1: DEMANDAS INDIVIDUALES | I1: DEMANDAS AGREGADAS | Z1: Demanda | AB1: LINE | AP1: Elasticidad Punto Inicial | AQ1: Elasticidad Arco | AR1: Elasticidad Punto Final | BA1: EL INGRESO TOTAL | BC1: DEMANDA | BE1: LINE | BZ1: EL INGRESO TOTAL | CB1: DEMANDA | CD1: LINE
A2: Unidades | B2: ponderador | C2: P | D2: C1 | E2: C2 | F2: C3 | G2: C4 | H2: C5 | I2: (C1+C2) | J2: (C1+C2)+C3 | K2: (C1+C2+C3)+C4 | L2: (C1+C2+C3+C4)+C5 | M2: DEMANDA | N2: Pline | O2: Pline | P2: c1line | Q2: c2line | R2: c3line | S2: c4line | T2: c5line | U2: cTODOSline | V2: cTODOSline | X2: Unidades | Y2: ponderador | Z2: P | AA2: C1 | AB2: X1-1 | AD2: X2-1 | AF2: X2-1 | AK2: X0 | AL2: X1 | AM2: P0 | AN2: P1 | AP2: EPX | AQ2: EPX | AR2: EPX | AS2: 1 | AU2: 2 | AW2: 3 | BA2: Unidades | BB2: ponderador | BC2: P | BD2: C1 | BE2: X1-1 | BG2: X2-1 | BI2: X2-1 | BK2: X1-1 | BM2: X2-1 | BR2: 1200 | BS2: -10 | BT2: 50 | BU2: -0.1 | BV2: 5000 | BW2: 5 | BX2: 45 | BZ2: Unidades | CA2: ponderador | CB2: P | CC2: C1 | CD2: X1-1 | CF2: X2-1 | CH2: X2-1 | CJ2: X1-1 | CL2: X2-1
A3: 1 | B3: 0 | C3: =(MAX($H$26:$H$30))*B3 -> 0 | D3: =$F$26+($G$26*C3) -> 40.00 | E3: =$F$27+($G$27*C3) -> 120.00 | F3: =$F$28+($G$28*C3) -> 110.00 | G3: =$F$29+($G$29*C3) -> 150.00 | H3: =$F$30+($G$30*C3) -> 250.00 | I3: =D3+E3 -> 160.00 | J3: =I3+F3 -> 270.00 | K3: =J3+G3 -> 420.00 | L3: =K3+H3 -> 670.00 | M3: =MAX(I3:L3) -> 670.00 | N3: =$I$26 -> 40.00 | O3: =N3*B3 -> 0 | P3: =$D$26 -> 0 | Q3: =$D$27 -> 0 | R3: =$D$28 -> 70.00 | S3: =$D$29 -> 30.00 | T3: =$D$30 -> 150.00 | U3: =SUM(P3:T3)*B3 -> 0 | V3: =SUM(P3:T3) -> 250.00 | X3: 1 | Y3: 0 | Z3: =$AB$26*Y3 -> 0 | AA3: =$Y$26+($Z$26*Z3) -> 200.00 | AB3: =$X$26 -> 100.00 | AC3: =$AA$26*Y3 -> 0 | AD3: =$AA$26 -> 50.00 | AE3: =$X$26*Y3 -> 0 | AF3: =$AC$26 -> 50.00 | AG3: =$Y$26*Y3 -> 0 | AJ3: ELASTICIDAD PRECIO DE LA DEMANDA | AK3: ='Elasticidades DM'!C9 -> 100.0 | AL3: ='Elasticidades DM'!D9 -> 250.0 | AM3: ='Elasticidades DM'!E9 -> 10.0 | AN3: ='Elasticidades DM'!F9 -> 5.0 | AP3: =((AL3-AK3)/AK3)/((AN3-AM3)/AM3) -> -3.0 | AQ3: =((AL3-AK3)/((AK3+AL3)/2))/((AN3-AM3)/((AM3+AN3)/2)) -> -1.3 | AR3: =((AL3-AK3)/AL3)/((AN3-AM3)/AN3) -> -0.6 | AS3: =ABS(AP3) -> 3 | AU3: =ABS(AQ3) -> 1.285714286 | AW3: =ABS(AR3) -> 0.6 | BA3: 1 | BB3: 0 | BC3: =$BE$26*BB3 -> 0 | BD3: =$BB$26+($BC$26*BC3) -> 100.00 | BE3: =$BA$26 -> 50.00 | BF3: =$BD$26*BB3 -> 0 | BG3: =$BD$26 -> 25.00 | BH3: =$BA$26*BB3 -> 0 | BI3: =$BF$26 -> 25.00 | BJ3: =$BB$26*BB3 -> 0 | BK3: =$BA$27 -> 50.00 | BL3: =$BD$27*BB3 -> 0 | BM3: =$BD$27 -> 25.00 | BN3: =BB3*$BA$27 -> 0 | BQ3: x1 | BR3: b0 | BS3: b1 | BT3: P1 | BU3: b2 | BV3: m | BW3: b3 | BX3: P2 | BZ3: 1 | CA3: 0 | CB3: =$BT$11*CA3 -> 0 | CC3: =$BR$4+($BS$4*CB3)+($BU$4*$BV$4)+($BW$4*$BX$4) -> 1,150.00 | CD3: =$BQ$4 -> 578.00 | CE3: =$BT$4*CA3 -> 0 | CF3: =$BT$4 -> 57.20 | CG3: =$BQ$4*CA3 -> 0 | CH3: =$BF$26 -> 25.00 | CI3: =$BB$26*CA3 -> 0 | CJ3: =$BA$27 -> 50.00 | CK3: =$BD$27*CA3 -> 0 | CL3: =$BD$27 -> 25.00 | CM3: =CA3*$BA$27 -> 0
A4: 2 | B4: 0.05 | C4: 5.50 | D4: =$F$26+($G$26*C4) -> 29.00 | E4: =$F$27+($G$27*C4) -> 98.00 | F4: =$F$28+($G$28*C4) -> 104.50 | G4: =$F$29+($G$29*C4) -> 133.50 | H4: =$F$30+($G$30*C4) -> 236.25 | I4: =D4+E4 -> 127.00 | J4: =I4+F4 -> 231.50 | K4: =J4+G4 -> 365.00 | L4: =K4+H4 -> 601.25 | M4: =MAX(I4:L4) -> 601.25 | N4: =$I$26 -> 40.00 | O4: =N4*B4 -> 2.00 | P4: =$D$26 -> 0 | Q4: =$D$27 -> 0 | R4: =$D$28 -> 70.00 | S4: =$D$29 -> 30.00 | T4: =$D$30 -> 150.00 | U4: =SUM(P4:T4)*B4 -> 12.50 | V4: =SUM(P4:T4) -> 250.00 | X4: 2 | Y4: 0.05 | Z4: 5.00 | AA4: =$Y$26+($Z$26*Z4) -> 190.00 | AB4: 100.00 | AC4: 2.50 | AD4: 50.00 | AE4: 5.00 | AF4: 50.00 | AG4: 10.00 | AP4: =AS4 -> DEMANDA ELÁSTICA | AQ4: =AU4 -> DEMANDA ELÁSTICA | AR4: =AW4 -> DEMANDA INELÁSTICA | AS4: =IF(AS3=1,"DEMANDA UNITARIA",AT4) -> DEMANDA ELÁSTICA | AT4: =IF(AS3>1,"DEMANDA ELÁSTICA","DEMANDA INELÁSTICA") -> DEMANDA ELÁSTICA | AU4: =IF(AU3=1,"DEMANDA UNITARIA",AV4) -> DEMANDA ELÁSTICA | AV4: =IF(AU3>1,"DEMANDA ELÁSTICA","DEMANDA INELÁSTICA") -> DEMANDA ELÁSTICA | AW4: =IF(AW3=1,"DEMANDA UNITARIA",AX4) -> DEMANDA INELÁSTICA | AX4: =IF(AW3>1,"DEMANDA ELÁSTICA","DEMANDA INELÁSTICA") -> DEMANDA INELÁSTICA | BA4: 2 | BB4: 0.05 | BC4: =$BE$26*BB4 -> 2.50 | BD4: =$BB$26+($BC$26*BC4) -> 95.00 | BE4: =$BA$26 -> 50.00 | BF4: =$BD$26*BB4 -> 1.25 | BG4: =$BD$26 -> 25.00 | BH4: =$BA$26*BB4 -> 2.50 | BI4: =$BF$26 -> 25.00 | BJ4: =$BB$26*BB4 -> 5.00 | BK4: =$BA$27 -> 50.00 | BL4: =$BD$27*BB4 -> 1.25 | BM4: =$BD$27 -> 25.00 | BN4: =BB4*$BA$27 -> 2.50 | BQ4: =BR4+(BS4*BT4)+(BU4*BV4)+(BW4*BX4) -> 578.0 | BR4: ='ElastTodas DM'!C4 -> 600.0 | BS4: ='ElastTodas DM'!D4 -> (10.0) | BT4: ='ElastTodas DM'!E4 -> 57.2 | BU4: ='ElastTodas DM'!F4 -> 0.1 | BV4: ='ElastTodas DM'!G4 -> 5,000.0 | BW4: ='ElastTodas DM'!H4 -> 4.0 | BX4: ='ElastTodas DM'!I4 -> 50.0 | BZ4: 2 | CA4: 0.05 | CB4: =$BT$11*CA4 -> 5.75 | CC4: =$BR$4+($BS$4*CB4)+($BU$4*$BV$4)+($BW$4*$BX$4) -> 1,092.50 | CD4: =$BQ$4 -> 578.00 | CE4: =$BT$4*CA4 -> 2.86 | CF4: =$BT$4 -> 57.20 | CG4: =$BQ$4*CA4 -> 28.90 | CH4: =$BF$26 -> 25.00 | CI4: =$BB$26*CA4 -> 5.00 | CJ4: =$BA$27 -> 50.00 | CK4: =$BD$27*CA4 -> 1.25 | CL4: =$BD$27 -> 25.00 | CM4: =CA4*$BA$27 -> 2.50
A5: 3 | B5: 0.10 | C5: 11.00 | D5: 18.00 | E5: 76.00 | F5: 99.00 | G5: 117.00 | H5: 222.50 | I5: 94.00 | J5: 193.00 | K5: 310.00 | L5: 532.50 | M5: 532.50 | N5: 40.00 | O5: 4.00 | P5: 0 | Q5: 0 | R5: 70.00 | S5: 30.00 | T5: 150.00 | U5: 25.00 | V5: 250.00 | X5: 3 | Y5: 0.10 | Z5: 10.00 | AA5: 180.00 | AB5: 100.00 | AC5: 5.00 | AD5: 50.00 | AE5: 10.00 | AF5: 50.00 | AG5: 20.00 | BA5: 3 | BB5: 0.10 | BC5: 5.00 | BD5: 90.00 | BE5: 50.00 | BF5: 2.50 | BG5: 25.00 | BH5: 5.00 | BI5: 25.00 | BJ5: 10.00 | BK5: 50.00 | BL5: 2.50 | BM5: 25.00 | BN5: 5.00 | BS5: Epx | BT5: =BS4*(BT4/BQ4) -> (0.99) | BU5: Emx | BV5: =BU4*(BV4/BQ4) -> 0.61 | BW5: Epp | BX5: =BW4*(BX4/BQ4) -> 0.35 | BZ5: 3 | CA5: 0.10 | CB5: 11.50 | CC5: 1,035.00 | CD5: 578.00 | CE5: 5.72 | CF5: 57.20 | CG5: 57.80 | CH5: 25.00 | CI5: 10.00 | CJ5: 50.00 | CK5: 2.50 | CL5: 25.00 | CM5: 5.00
A6: 4 | B6: 0.15 | C6: 16.50 | D6: 7.00 | E6: 54.00 | F6: 93.50 | G6: 100.50 | H6: 208.75 | I6: 61.00 | J6: 154.50 | K6: 255.00 | L6: 463.75 | M6: 463.75 | N6: 40.00 | O6: 6.00 | P6: 0 | Q6: 0 | R6: 70.00 | S6: 30.00 | T6: 150.00 | U6: 37.50 | V6: 250.00 | X6: 4 | Y6: 0.15 | Z6: 15.00 | AA6: 170.00 | AB6: 100.00 | AC6: 7.50 | AD6: 50.00 | AE6: 15.00 | AF6: 50.00 | AG6: 30.00 | AK6: X0 | AL6: X1 | AM6: m0 | AN6: m1 | AP6: EMX | AQ6: EMX | AR6: EMX | BA6: 4 | BB6: 0.15 | BC6: 7.50 | BD6: 85.00 | BE6: 50.00 | BF6: 3.75 | BG6: 25.00 | BH6: 7.50 | BI6: 25.00 | BJ6: 15.00 | BK6: 50.00 | BL6: 3.75 | BM6: 25.00 | BN6: 7.50 | BS6: Demanda | BT6: =IF(BT5=-1,"UNITARIA",BT7) -> INELÁSTICA | BU6: Bien | BV6: =IF(BV5<=0,"INFERIOR",BV7) -> NORMAL | BW6: Bien | BX6: =IF(BX5>0,"SUSTITUTO",BX7) -> SUSTITUTO | BZ6: 4 | CA6: 0.15 | CB6: 17.25 | CC6: 977.50 | CD6: 578.00 | CE6: 8.58 | CF6: 57.20 | CG6: 86.70 | CH6: 25.00 | CI6: 15.00 | CJ6: 50.00 | CK6: 3.75 | CL6: 25.00 | CM6: 7.50
A7: 5 | B7: 0.20 | C7: 22.00 | D7: (4.00) | E7: 32.00 | F7: 88.00 | G7: 84.00 | H7: 195.00 | I7: 28.00 | J7: 116.00 | K7: 200.00 | L7: 395.00 | M7: 395.00 | N7: 40.00 | O7: 8.00 | P7: 0 | Q7: 0 | R7: 70.00 | S7: 30.00 | T7: 150.00 | U7: 50.00 | V7: 250.00 | X7: 5 | Y7: 0.20 | Z7: 20.00 | AA7: 160.00 | AB7: 100.00 | AC7: 10.00 | AD7: 50.00 | AE7: 20.00 | AF7: 50.00 | AG7: 40.00 | AJ7: ELASTICIDAD INGRESO DE LA DEMANDA | AK7: ='Elasticidades DM'!C15 -> 90.0 | AL7: ='Elasticidades DM'!D15 -> 80.0 | AM7: ='Elasticidades DM'!E15 -> 1,000.0 | AN7: ='Elasticidades DM'!F15 -> 1,200.0 | AP7: =((AL7-AK7)/AK7)/((AN7-AM7)/AM7) -> -0.6 | AQ7: =((AL7-AK7)/((AK7+AL7)/2))/((AN7-AM7)/((AM7+AN7)/2)) -> -0.6 | AR7: =((AL7-AK7)/AL7)/((AN7-AM7)/AN7) -> -0.8 | AS7: 1 | AU7: 2 | AW7: 3 | BA7: 5 | BB7: 0.20 | BC7: 10.00 | BD7: 80.00 | BE7: 50.00 | BF7: 5.00 | BG7: 25.00 | BH7: 10.00 | BI7: 25.00 | BJ7: 20.00 | BK7: 50.00 | BL7: 5.00 | BM7: 25.00 | BN7: 10.00 | BT7: =IF(BT5<-1,"ELÁSTICA","INELÁSTICA") -> INELÁSTICA | BV7: =IF(BV5>1,"SUPERIOR","NORMAL") -> NORMAL | BX7: =IF(BX5<0,"COMPLEMENTARIO","NEUTRAL") -> NEUTRAL | BZ7: 5 | CA7: 0.20 | CB7: 23.00 | CC7: 920.00 | CD7: 578.00 | CE7: 11.44 | CF7: 57.20 | CG7: 115.60 | CH7: 25.00 | CI7: 20.00 | CJ7: 50.00 | CK7: 5.00 | CL7: 25.00 | CM7: 10.00
A8: 6 | B8: 0.25 | C8: 27.50 | D8: (15.00) | E8: 10.00 | F8: 82.50 | G8: 67.50 | H8: 181.25 | I8: -5.00 | J8: 77.50 | K8: 145.00 | L8: 326.25 | M8: 326.25 | N8: 40.00 | O8: 10.00 | P8: 0 | Q8: 0 | R8: 70.00 | S8: 30.00 | T8: 150.00 | U8: 62.50 | V8: 250.00 | X8: 6 | Y8: 0.25 | Z8: 25.00 | AA8: 150.00 | AB8: 100.00 | AC8: 12.50 | AD8: 50.00 | AE8: 25.00 | AF8: 50.00 | AG8: 50.00 | AP8: =AS8 -> BIEN INFERIOR | AQ8: =AU8 -> BIEN INFERIOR | AR8: =AW8 -> BIEN INFERIOR | AS8: =IF(AP7<0,"BIEN INFERIOR",AT8) -> BIEN INFERIOR | AT8: =IF(AP7>=1,"BIEN SUPERIOR","BIEN NORMAL") -> BIEN NORMAL | AU8: =IF(AQ7<0,"BIEN INFERIOR",AV8) -> BIEN INFERIOR | AV8: =IF(AQ7>=1,"BIEN SUPERIOR","BIEN NORMAL") -> BIEN NORMAL | AW8: =IF(AR7<0,"BIEN INFERIOR",AX8) -> BIEN INFERIOR | AX8: =IF(AR7>=1,"BIEN SUPERIOR","BIEN NORMAL") -> BIEN NORMAL | BA8: 6 | BB8: 0.25 | BC8: 12.50 | BD8: 75.00 | BE8: 50.00 | BF8: 6.25 | BG8: 25.00 | BH8: 12.50 | BI8: 25.00 | BJ8: 25.00 | BK8: 50.00 | BL8: 6.25 | BM8: 25.00 | BN8: 12.50 | BZ8: 6 | CA8: 0.25 | CB8: 28.75 | CC8: 862.50 | CD8: 578.00 | CE8: 14.30 | CF8: 57.20 | CG8: 144.50 | CH8: 25.00 | CI8: 25.00 | CJ8: 50.00 | CK8: 6.25 | CL8: 25.00 | CM8: 12.50
A9: 7 | B9: 0.30 | C9: 33.00 | D9: (26.00) | E9: -12.00 | F9: 77.00 | G9: 51.00 | H9: 167.50 | I9: -38.00 | J9: 39.00 | K9: 90.00 | L9: 257.50 | M9: 257.50 | N9: 40.00 | O9: 12.00 | P9: 0 | Q9: 0 | R9: 70.00 | S9: 30.00 | T9: 150.00 | U9: 75.00 | V9: 250.00 | X9: 7 | Y9: 0.30 | Z9: 30.00 | AA9: 140.00 | AB9: 100.00 | AC9: 15.00 | AD9: 50.00 | AE9: 30.00 | AF9: 50.00 | AG9: 60.00 | BA9: 7 | BB9: 0.30 | BC9: 15.00 | BD9: 70.00 | BE9: 50.00 | BF9: 7.50 | BG9: 25.00 | BH9: 15.00 | BI9: 25.00 | BJ9: 30.00 | BK9: 50.00 | BL9: 7.50 | BM9: 25.00 | BN9: 15.00 | BZ9: 7 | CA9: 0.30 | CB9: 34.50 | CC9: 805.00 | CD9: 578.00 | CE9: 17.16 | CF9: 57.20 | CG9: 173.40 | CH9: 25.00 | CI9: 30.00 | CJ9: 50.00 | CK9: 7.50 | CL9: 25.00 | CM9: 15.00
A10: 8 | B10: 0.35 | C10: 38.50 | D10: (37.00) | E10: -34.00 | F10: 71.50 | G10: 34.50 | H10: 153.75 | I10: -71.00 | J10: 0.50 | K10: 35.00 | L10: 188.75 | M10: 188.75 | N10: 40.00 | O10: 14.00 | P10: 0 | Q10: 0 | R10: 70.00 | S10: 30.00 | T10: 150.00 | U10: 87.50 | V10: 250.00 | X10: 8 | Y10: 0.35 | Z10: 35.00 | AA10: 130.00 | AB10: 100.00 | AC10: 17.50 | AD10: 50.00 | AE10: 35.00 | AF10: 50.00 | AG10: 70.00 | AK10: X0 | AL10: X1 | AM10: PBR 0 | AN10: PBR 1 | AP10: EPP | AQ10: EPP | AR10: EPP | BA10: 8 | BB10: 0.35 | BC10: 17.50 | BD10: 65.00 | BE10: 50.00 | BF10: 8.75 | BG10: 25.00 | BH10: 17.50 | BI10: 25.00 | BJ10: 35.00 | BK10: 50.00 | BL10: 8.75 | BM10: 25.00 | BN10: 17.50 | BS10: P1 | BT10: OalO | BU10: Pendiente | BV10: x1 | BZ10: 8 | CA10: 0.35 | CB10: 40.25 | CC10: 747.50 | CD10: 578.00 | CE10: 20.02 | CF10: 57.20 | CG10: 202.30 | CH10: 25.00 | CI10: 35.00 | CJ10: 50.00 | CK10: 8.75 | CL10: 25.00 | CM10: 17.50
A11: 9 | B11: 0.40 | C11: 44.00 | D11: (48.00) | E11: -56.00 | F11: 66.00 | G11: 18.00 | H11: 140.00 | I11: -104.00 | J11: -38.00 | K11: -20.00 | L11: 120.00 | M11: 120.00 | N11: 40.00 | O11: 16.00 | P11: 0 | Q11: 0 | R11: 70.00 | S11: 30.00 | T11: 150.00 | U11: 100.00 | V11: 250.00 | X11: 9 | Y11: 0.40 | Z11: 40.00 | AA11: 120.00 | AB11: 100.00 | AC11: 20.00 | AD11: 50.00 | AE11: 40.00 | AF11: 50.00 | AG11: 80.00 | AJ11: ELASTICIDAD PRECIO CRUZADA DE LA DEMANDA | AK11: ='Elasticidades DM'!C20 -> 200.0 | AL11: ='Elasticidades DM'!D20 -> 330.0 | AM11: ='Elasticidades DM'!E20 -> 100.0 | AN11: ='Elasticidades DM'!F20 -> 150.0 | AP11: =((AL11-AK11)/AK11)/((AN11-AM11)/AM11) -> 1.3 | AQ11: =((AL11-AK11)/((AK11+AL11)/2))/((AN11-AM11)/((AM11+AN11)/2)) -> 1.2 | AR11: =((AL11-AK11)/AL11)/((AN11-AM11)/AN11) -> 1.2 | BA11: 9 | BB11: 0.40 | BC11: 20.00 | BD11: 60.00 | BE11: 50.00 | BF11: 10.00 | BG11: 25.00 | BH11: 20.00 | BI11: 25.00 | BJ11: 40.00 | BK11: 50.00 | BL11: 10.00 | BM11: 25.00 | BN11: 20.00 | BS11: =BT11+(BU11*BV11) -> 113.0 | BT11: =(BR4+(BU4*BV4)+(BW4*BX4))/(BS4*-1) -> 115.0 | BU11: =1/BS4 -> (0.10) | BV11: ='ElastTodas DM'!E9 -> 20.0 | BZ11: 9 | CA11: 0.40 | CB11: 46.00 | CC11: 690.00 | CD11: 578.00 | CE11: 22.88 | CF11: 57.20 | CG11: 231.20 | CH11: 25.00 | CI11: 40.00 | CJ11: 50.00 | CK11: 10.00 | CL11: 25.00 | CM11: 20.00
A12: 10 | B12: 0.45 | C12: 49.50 | D12: (59.00) | E12: -78.00 | F12: 60.50 | G12: 1.50 | H12: 126.25 | I12: -137.00 | J12: -76.50 | K12: -75.00 | L12: 51.25 | M12: 51.25 | N12: 40.00 | O12: 18.00 | P12: 0 | Q12: 0 | R12: 70.00 | S12: 30.00 | T12: 150.00 | U12: 112.50 | V12: 250.00 | X12: 10 | Y12: 0.45 | Z12: 45.00 | AA12: 110.00 | AB12: 100.00 | AC12: 22.50 | AD12: 50.00 | AE12: 45.00 | AF12: 50.00 | AG12: 90.00 | AK12: Inserte los datos correspondientes | AP12: =AS12 -> BIEN SUSTITUTO | AQ12: =AU12 -> BIEN SUSTITUTO | AR12: =AW12 -> BIEN SUSTITUTO | AS12: =IF(AP11=0,"BIEN NEUTRAL",AT12) -> BIEN SUSTITUTO | AT12: =IF(AP11<0,"BIEN COMPLE-MENTARIO","BIEN SUSTITUTO") -> BIEN SUSTITUTO | AU12: =IF(AQ11=0,"BIEN NEUTRAL",AV12) -> BIEN SUSTITUTO | AV12: =IF(AQ11<0,"BIEN COMPLE-MENTARIO","BIEN SUSTITUTO") -> BIEN SUSTITUTO | AW12: =IF(AR11=0,"BIEN NEUTRAL",AX12) -> BIEN SUSTITUTO | AX12: =IF(AR11<0,"BIEN COMPLE-MENTARIO","BIEN SUSTITUTO") -> BIEN SUSTITUTO | BA12: 10 | BB12: 0.45 | BC12: 22.50 | BD12: 55.00 | BE12: 50.00 | BF12: 11.25 | BG12: 25.00 | BH12: 22.50 | BI12: 25.00 | BJ12: 45.00 | BK12: 50.00 | BL12: 11.25 | BM12: 25.00 | BN12: 22.50 | BZ12: 10 | CA12: 0.45 | CB12: 51.75 | CC12: 632.50 | CD12: 578.00 | CE12: 25.74 | CF12: 57.20 | CG12: 260.10 | CH12: 25.00 | CI12: 45.00 | CJ12: 50.00 | CK12: 11.25 | CL12: 25.00 | CM12: 22.50
A13: 11 | B13: 0.50 | C13: 55.00 | D13: (70.00) | E13: -100.00 | F13: 55.00 | G13: -15.00 | H13: 112.50 | I13: -170.00 | J13: -115.00 | K13: -130.00 | L13: -17.50 | M13: (17.50) | N13: 40.00 | O13: 20.00 | P13: 0 | Q13: 0 | R13: 70.00 | S13: 30.00 | T13: 150.00 | U13: 125.00 | V13: 250.00 | X13: 11 | Y13: 0.50 | Z13: 50.00 | AA13: 100.00 | AB13: 100.00 | AC13: 25.00 | AD13: 50.00 | AE13: 50.00 | AF13: 50.00 | AG13: 100.00 | BA13: 11 | BB13: 0.50 | BC13: 25.00 | BD13: 50.00 | BE13: 50.00 | BF13: 12.50 | BG13: 25.00 | BH13: 25.00 | BI13: 25.00 | BJ13: 50.00 | BK13: 50.00 | BL13: 12.50 | BM13: 25.00 | BN13: 25.00 | BZ13: 11 | CA13: 0.50 | CB13: 57.50 | CC13: 575.00 | CD13: 578.00 | CE13: 28.60 | CF13: 57.20 | CG13: 289.00 | CH13: 25.00 | CI13: 50.00 | CJ13: 50.00 | CK13: 12.50 | CL13: 25.00 | CM13: 25.00
A14: 12 | B14: 0.55 | C14: 60.50 | D14: (81.00) | E14: -122.00 | F14: 49.50 | G14: -31.50 | H14: 98.75 | I14: -203.00 | J14: -153.50 | K14: -185.00 | L14: -86.25 | M14: (86.25) | N14: 40.00 | O14: 22.00 | P14: 0 | Q14: 0 | R14: 70.00 | S14: 30.00 | T14: 150.00 | U14: 137.50 | V14: 250.00 | X14: 12 | Y14: 0.55 | Z14: 55.00 | AA14: 90.00 | AB14: 100.00 | AC14: 27.50 | AD14: 50.00 | AE14: 55.00 | AF14: 50.00 | AG14: 110.00 | BA14: 12 | BB14: 0.55 | BC14: 27.50 | BD14: 45.00 | BE14: 50.00 | BF14: 13.75 | BG14: 25.00 | BH14: 27.50 | BI14: 25.00 | BJ14: 55.00 | BK14: 50.00 | BL14: 13.75 | BM14: 25.00 | BN14: 27.50 | BZ14: 12 | CA14: 0.55 | CB14: 63.25 | CC14: 517.50 | CD14: 578.00 | CE14: 31.46 | CF14: 57.20 | CG14: 317.90 | CH14: 25.00 | CI14: 55.00 | CJ14: 50.00 | CK14: 13.75 | CL14: 25.00 | CM14: 27.50
A15: 13 | B15: 0.60 | C15: 66.00 | D15: (92.00) | E15: -144.00 | F15: 44.00 | G15: -48.00 | H15: 85.00 | I15: -236.00 | J15: -192.00 | K15: -240.00 | L15: -155.00 | M15: (155.00) | N15: 40.00 | O15: 24.00 | P15: 0 | Q15: 0 | R15: 70.00 | S15: 30.00 | T15: 150.00 | U15: 150.00 | V15: 250.00 | X15: 13 | Y15: 0.60 | Z15: 60.00 | AA15: 80.00 | AB15: 100.00 | AC15: 30.00 | AD15: 50.00 | AE15: 60.00 | AF15: 50.00 | AG15: 120.00 | BA15: 13 | BB15: 0.60 | BC15: 30.00 | BD15: 40.00 | BE15: 50.00 | BF15: 15.00 | BG15: 25.00 | BH15: 30.00 | BI15: 25.00 | BJ15: 60.00 | BK15: 50.00 | BL15: 15.00 | BM15: 25.00 | BN15: 30.00 | BZ15: 13 | CA15: 0.60 | CB15: 69.00 | CC15: 460.00 | CD15: 578.00 | CE15: 34.32 | CF15: 57.20 | CG15: 346.80 | CH15: 25.00 | CI15: 60.00 | CJ15: 50.00 | CK15: 15.00 | CL15: 25.00 | CM15: 30.00
A16: 14 | B16: 0.65 | C16: 71.50 | D16: (103.00) | E16: -166.00 | F16: 38.50 | G16: -64.50 | H16: 71.25 | I16: -269.00 | J16: -230.50 | K16: -295.00 | L16: -223.75 | M16: (223.75) | N16: 40.00 | O16: 26.00 | P16: 0 | Q16: 0 | R16: 70.00 | S16: 30.00 | T16: 150.00 | U16: 162.50 | V16: 250.00 | X16: 14 | Y16: 0.65 | Z16: 65.00 | AA16: 70.00 | AB16: 100.00 | AC16: 32.50 | AD16: 50.00 | AE16: 65.00 | AF16: 50.00 | AG16: 130.00 | BA16: 14 | BB16: 0.65 | BC16: 32.50 | BD16: 35.00 | BE16: 50.00 | BF16: 16.25 | BG16: 25.00 | BH16: 32.50 | BI16: 25.00 | BJ16: 65.00 | BK16: 50.00 | BL16: 16.25 | BM16: 25.00 | BN16: 32.50 | BZ16: 14 | CA16: 0.65 | CB16: 74.75 | CC16: 402.50 | CD16: 578.00 | CE16: 37.18 | CF16: 57.20 | CG16: 375.70 | CH16: 25.00 | CI16: 65.00 | CJ16: 50.00 | CK16: 16.25 | CL16: 25.00 | CM16: 32.50
A17: 15 | B17: 0.70 | C17: 77.00 | D17: (114.00) | E17: -188.00 | F17: 33.00 | G17: -81.00 | H17: 57.50 | I17: -302.00 | J17: -269.00 | K17: -350.00 | L17: -292.50 | M17: (269.00) | N17: 40.00 | O17: 28.00 | P17: 0 | Q17: 0 | R17: 70.00 | S17: 30.00 | T17: 150.00 | U17: 175.00 | V17: 250.00 | X17: 15 | Y17: 0.70 | Z17: 70.00 | AA17: 60.00 | AB17: 100.00 | AC17: 35.00 | AD17: 50.00 | AE17: 70.00 | AF17: 50.00 | AG17: 140.00 | BA17: 15 | BB17: 0.70 | BC17: 35.00 | BD17: 30.00 | BE17: 50.00 | BF17: 17.50 | BG17: 25.00 | BH17: 35.00 | BI17: 25.00 | BJ17: 70.00 | BK17: 50.00 | BL17: 17.50 | BM17: 25.00 | BN17: 35.00 | BZ17: 15 | CA17: 0.70 | CB17: 80.50 | CC17: 345.00 | CD17: 578.00 | CE17: 40.04 | CF17: 57.20 | CG17: 404.60 | CH17: 25.00 | CI17: 70.00 | CJ17: 50.00 | CK17: 17.50 | CL17: 25.00 | CM17: 35.00
A18: 16 | B18: 0.75 | C18: 82.50 | D18: (125.00) | E18: -210.00 | F18: 27.50 | G18: -97.50 | H18: 43.75 | I18: -335.00 | J18: -307.50 | K18: -405.00 | L18: -361.25 | M18: (307.50) | N18: 40.00 | O18: 30.00 | P18: 0 | Q18: 0 | R18: 70.00 | S18: 30.00 | T18: 150.00 | U18: 187.50 | V18: 250.00 | X18: 16 | Y18: 0.75 | Z18: 75.00 | AA18: 50.00 | AB18: 100.00 | AC18: 37.50 | AD18: 50.00 | AE18: 75.00 | AF18: 50.00 | AG18: 150.00 | BA18: 16 | BB18: 0.75 | BC18: 37.50 | BD18: 25.00 | BE18: 50.00 | BF18: 18.75 | BG18: 25.00 | BH18: 37.50 | BI18: 25.00 | BJ18: 75.00 | BK18: 50.00 | BL18: 18.75 | BM18: 25.00 | BN18: 37.50 | BZ18: 16 | CA18: 0.75 | CB18: 86.25 | CC18: 287.50 | CD18: 578.00 | CE18: 42.90 | CF18: 57.20 | CG18: 433.50 | CH18: 25.00 | CI18: 75.00 | CJ18: 50.00 | CK18: 18.75 | CL18: 25.00 | CM18: 37.50
A19: 17 | B19: 0.80 | C19: 88.00 | D19: (136.00) | E19: -232.00 | F19: 22.00 | G19: -114.00 | H19: 30.00 | I19: -368.00 | J19: -346.00 | K19: -460.00 | L19: -430.00 | M19: (346.00) | N19: 40.00 | O19: 32.00 | P19: 0 | Q19: 0 | R19: 70.00 | S19: 30.00 | T19: 150.00 | U19: 200.00 | V19: 250.00 | X19: 17 | Y19: 0.80 | Z19: 80.00 | AA19: 40.00 | AB19: 100.00 | AC19: 40.00 | AD19: 50.00 | AE19: 80.00 | AF19: 50.00 | AG19: 160.00 | BA19: 17 | BB19: 0.80 | BC19: 40.00 | BD19: 20.00 | BE19: 50.00 | BF19: 20.00 | BG19: 25.00 | BH19: 40.00 | BI19: 25.00 | BJ19: 80.00 | BK19: 50.00 | BL19: 20.00 | BM19: 25.00 | BN19: 40.00 | BZ19: 17 | CA19: 0.80 | CB19: 92.00 | CC19: 230.00 | CD19: 578.00 | CE19: 45.76 | CF19: 57.20 | CG19: 462.40 | CH19: 25.00 | CI19: 80.00 | CJ19: 50.00 | CK19: 20.00 | CL19: 25.00 | CM19: 40.00
A20: 18 | B20: 0.85 | C20: 93.50 | D20: (147.00) | E20: -254.00 | F20: 16.50 | G20: -130.50 | H20: 16.25 | I20: -401.00 | J20: -384.50 | K20: -515.00 | L20: -498.75 | M20: (384.50) | N20: 40.00 | O20: 34.00 | P20: 0 | Q20: 0 | R20: 70.00 | S20: 30.00 | T20: 150.00 | U20: 212.50 | V20: 250.00 | X20: 18 | Y20: 0.85 | Z20: 85.00 | AA20: 30.00 | AB20: 100.00 | AC20: 42.50 | AD20: 50.00 | AE20: 85.00 | AF20: 50.00 | AG20: 170.00 | BA20: 18 | BB20: 0.85 | BC20: 42.50 | BD20: 15.00 | BE20: 50.00 | BF20: 21.25 | BG20: 25.00 | BH20: 42.50 | BI20: 25.00 | BJ20: 85.00 | BK20: 50.00 | BL20: 21.25 | BM20: 25.00 | BN20: 42.50 | BZ20: 18 | CA20: 0.85 | CB20: 97.75 | CC20: 172.50 | CD20: 578.00 | CE20: 48.62 | CF20: 57.20 | CG20: 491.30 | CH20: 25.00 | CI20: 85.00 | CJ20: 50.00 | CK20: 21.25 | CL20: 25.00 | CM20: 42.50
A21: 19 | B21: 0.90 | C21: 99.00 | D21: (158.00) | E21: -276.00 | F21: 11.00 | G21: -147.00 | H21: 2.50 | I21: -434.00 | J21: -423.00 | K21: -570.00 | L21: -567.50 | M21: (423.00) | N21: 40.00 | O21: 36.00 | P21: 0 | Q21: 0 | R21: 70.00 | S21: 30.00 | T21: 150.00 | U21: 225.00 | V21: 250.00 | X21: 19 | Y21: 0.90 | Z21: 90.00 | AA21: 20.00 | AB21: 100.00 | AC21: 45.00 | AD21: 50.00 | AE21: 90.00 | AF21: 50.00 | AG21: 180.00 | BA21: 19 | BB21: 0.90 | BC21: 45.00 | BD21: 10.00 | BE21: 50.00 | BF21: 22.50 | BG21: 25.00 | BH21: 45.00 | BI21: 25.00 | BJ21: 90.00 | BK21: 50.00 | BL21: 22.50 | BM21: 25.00 | BN21: 45.00 | BZ21: 19 | CA21: 0.90 | CB21: 103.50 | CC21: 115.00 | CD21: 578.00 | CE21: 51.48 | CF21: 57.20 | CG21: 520.20 | CH21: 25.00 | CI21: 90.00 | CJ21: 50.00 | CK21: 22.50 | CL21: 25.00 | CM21: 45.00
A22: 20 | B22: 0.95 | C22: 104.50 | D22: (169.00) | E22: -298.00 | F22: 5.50 | G22: -163.50 | H22: -11.25 | I22: -467.00 | J22: -461.50 | K22: -625.00 | L22: -636.25 | M22: (461.50) | N22: 40.00 | O22: 38.00 | P22: 0 | Q22: 0 | R22: 70.00 | S22: 30.00 | T22: 150.00 | U22: 237.50 | V22: 250.00 | X22: 20 | Y22: 0.95 | Z22: 95.00 | AA22: 10.00 | AB22: 100.00 | AC22: 47.50 | AD22: 50.00 | AE22: 95.00 | AF22: 50.00 | AG22: 190.00 | BA22: 20 | BB22: 0.95 | BC22: 47.50 | BD22: 5.00 | BE22: 50.00 | BF22: 23.75 | BG22: 25.00 | BH22: 47.50 | BI22: 25.00 | BJ22: 95.00 | BK22: 50.00 | BL22: 23.75 | BM22: 25.00 | BN22: 47.50 | BZ22: 20 | CA22: 0.95 | CB22: 109.25 | CC22: 57.50 | CD22: 578.00 | CE22: 54.34 | CF22: 57.20 | CG22: 549.10 | CH22: 25.00 | CI22: 95.00 | CJ22: 50.00 | CK22: 23.75 | CL22: 25.00 | CM22: 47.50
A23: 21 | B23: 1.00 | C23: 110.00 | D23: (180.00) | E23: -320.00 | F23: 0 | G23: -180.00 | H23: -25.00 | I23: -500.00 | J23: -500.00 | K23: -680.00 | L23: -705.00 | M23: (500.00) | N23: 40.00 | O23: 40.00 | P23: 0 | Q23: 0 | R23: 70.00 | S23: 30.00 | T23: 150.00 | U23: 250.00 | V23: 250.00 | X23: 21 | Y23: 1.00 | Z23: 100.00 | AA23: 0 | AB23: 100.00 | AC23: 50.00 | AD23: 50.00 | AE23: 100.00 | AF23: 50.00 | AG23: 200.00 | BA23: 21 | BB23: 1.00 | BC23: 50.00 | BD23: 0 | BE23: 50.00 | BF23: 25.00 | BG23: 25.00 | BH23: 50.00 | BI23: 25.00 | BJ23: 100.00 | BK23: 50.00 | BL23: 25.00 | BM23: 25.00 | BN23: 50.00 | BZ23: 21 | CA23: 1.00 | CB23: 115.00 | CC23: 0 | CD23: 578.00 | CE23: 57.20 | CF23: 57.20 | CG23: 578.00 | CH23: 25.00 | CI23: 100.00 | CJ23: 50.00 | CK23: 25.00 | CL23: 25.00 | CM23: 50.00
D25: filtro | E25: xd | F25: b0 | G25: b1 | H25: P MAX | I25: p | X25: x1 | Y25: b0 | Z25: b1 | AA25: P1 | AB25: p MAX | AC25: p MAX / 2 | AD25: p MAX / 2 | BA25: x1 | BB25: b0 | BC25: b1 | BD25: P1 | BE25: p MAX | BF25: p MAX / 2 | BG25: p MAX / 2
C26: Consumidor 1 | D26: =IF(E26>0,E26,0) -> 0.0 | E26: =F26+(G26*I26) -> -40.0 | F26: ='DemAgreg DM'!D10 -> 40.0 | G26: ='DemAgreg DM'!E10 -> -2.0 | H26: =F26/G26*-1 -> 20.0 | I26: ='DemAgreg DM'!$F$10 -> 40.0 | X26: =Y26+(Z26*AA26) -> 100.0 | Y26: ='Elasticidad Punto DM'!C7 -> 200.0 | Z26: ='Elasticidad Punto DM'!D7 -> -2.0 | AA26: ='Elasticidad Punto DM'!E7 -> 50.0 | AB26: =Y26/Z26*-1 -> 100.0 | AC26: =AB26/2 -> 50.0 | AD26: =Y26+(Z26*AC26) -> 100.0 | AZ26: A | BA26: =BB26+(BC26*BD26) -> 50.0 | BB26: ='ElasticIngreso DM'!D8 -> 100.0 | BC26: ='ElasticIngreso DM'!E8 -> -2.0 | BD26: ='ElasticIngreso DM'!F8 -> 25.0 | BE26: =BB26/BC26*-1 -> 50.0 | BF26: =BE26/2 -> 25.0 | BG26: =BB26+(BC26*BF26) -> 50.0
C27: Consumidor 2 | D27: =IF(E27>0,E27,0) -> 0.0 | E27: =F27+(G27*I27) -> -40.0 | F27: ='DemAgreg DM'!D11 -> 120.0 | G27: ='DemAgreg DM'!E11 -> -4.0 | H27: =F27/G27*-1 -> 30.0 | I27: ='DemAgreg DM'!$F$10 -> 40.0 | AZ27: B | BA27: =BB27+(BC27*BD27) -> 50.0 | BB27: =BB26 -> 100.0 | BC27: =BC26 -> -2.0 | BD27: ='ElasticIngreso DM'!F9 -> 25.0
C28: Consumidor 3 | D28: =IF(E28>0,E28,0) -> 70.0 | E28: =F28+(G28*I28) -> 70.0 | F28: ='DemAgreg DM'!D12 -> 110.0 | G28: ='DemAgreg DM'!E12 -> -1.0 | H28: =F28/G28*-1 -> 110.0 | I28: ='DemAgreg DM'!$F$10 -> 40.0 | X28: DX/DP | Y28: P/X | Z28: EPX | AA28: TIPO | AB28: filtro | BA28: DX / DP | BB28: P / X | BC28: EPX | BD28: Tipo | BE28: filtro
C29: Consumidor 4 | D29: =IF(E29>0,E29,0) -> 30.0 | E29: =F29+(G29*I29) -> 30.0 | F29: ='DemAgreg DM'!D13 -> 150.0 | G29: ='DemAgreg DM'!E13 -> -3.0 | H29: =F29/G29*-1 -> 50.0 | I29: ='DemAgreg DM'!$F$10 -> 40.0 | X29: =Z26 -> -2.0 | Y29: =AA26/X26 -> 0.5 | Z29: =Y29*X29 -> -1.0 | AA29: =IF(Z29=-1,"UNITARIA",AB29) -> UNITARIA | AB29: =IF(Z29<-1,"ELÁSTICA","INELÁSTICA") -> INELÁSTICA | BA29: =IF(BD26=BD27,0,((BA27-BA26)/(BD27-BD26))) -> 0.0 | BB29: =BD27/BA27 -> 0.5 | BC29: =IF(BD26=BD27,-1,(BB29*BA29)) -> -1.0 | BD29: =IF(BD26=BD27,"UNITARIA",BE29) -> UNITARIA | BE29: =IF(BC29<-1,"ELÁSTICA","INELÁSTICA") -> INELÁSTICA
C30: Consumidor 5 | D30: =IF(E30>0,E30,0) -> 150.0 | E30: =F30+(G30*I30) -> 150.0 | F30: ='DemAgreg DM'!D14 -> 250.0 | G30: ='DemAgreg DM'!E14 -> -2.5 | H30: =F30/G30*-1 -> 100.0 | I30: ='DemAgreg DM'!$F$10 -> 40.0
BD31: Variación del
BA32: Precio | BB32: Cantidad | BC32: Ingreso Total | BD32: Ingreso Total
AZ33: A | BA33: =BD26 -> 25.0 | BB33: =BA26 -> 50.0 | BC33: =BB33*BA33 -> 1250.0
AZ34: B | BA34: =BD27 -> 25.0 | BB34: =BA27 -> 50.0 | BC34: =BB34*BA34 -> 1250.0 | BD34: =BC34-BC33 -> 0.0
C35: DEMANDAS INDIVIDUALES | I35: DEMANDAS AGREGADAS
A36: Unidades | B36: ponderador | C36: P | D36: C1 | E36: C2 | F36: C3 | G36: C4 | H36: C5 | I36: (C1+C2) | J36: (C1+C2)+C3 | K36: (C1+C2+C3)+C4 | L36: (C1+C2+C3+C4)+C5 | M36: DEMANDA
A37: 1 | B37: 0 | C37: =100*B37 -> 0 | D37: =IF(D3>0,D3,0) -> 40.00 | E37: =IF(E3>0,E3,0) -> 120.00 | F37: =IF(F3>0,F3,0) -> 110.00 | G37: =IF(G3>0,G3,0) -> 150.00 | H37: =IF(H3>0,H3,0) -> 250.00 | I37: =D37+E37 -> 160.00 | J37: =I37+F37 -> 270.00 | K37: =J37+G37 -> 420.00 | L37: =K37+H37 -> 670.00 | M37: =MAX(I37:L37) -> 670.00
A38: 2 | B38: 0.05 | C38: =100*B38 -> 5.00 | D38: =IF(D4>0,D4,0) -> 29.00 | E38: 98.00 | F38: 104.50 | G38: 133.50 | H38: 236.25 | I38: =D38+E38 -> 127.00 | J38: =I38+F38 -> 231.50 | K38: =J38+G38 -> 365.00 | L38: =K38+H38 -> 601.25 | M38: =MAX(I38:L38) -> 601.25
A39: 3 | B39: 0.10 | C39: 10.00 | D39: 18.00 | E39: 76.00 | F39: 99.00 | G39: 117.00 | H39: 222.50 | I39: 94.00 | J39: 193.00 | K39: 310.00 | L39: 532.50 | M39: 532.50
A40: 4 | B40: 0.15 | C40: 15.00 | D40: 7.00 | E40: 54.00 | F40: 93.50 | G40: 100.50 | H40: 208.75 | I40: 61.00 | J40: 154.50 | K40: 255.00 | L40: 463.75 | M40: 463.75
A41: 5 | B41: 0.20 | C41: 20.00 | D41: =IF(D7>0,D7,0) -> 0 | E41: 32.00 | F41: 88.00 | G41: 84.00 | H41: 195.00 | I41: 32.00 | J41: 120.00 | K41: 204.00 | L41: 399.00 | M41: 399.00
A42: 6 | B42: 0.25 | C42: 25.00 | D42: 0 | E42: 10.00 | F42: 82.50 | G42: 67.50 | H42: 181.25 | I42: 10.00 | J42: 92.50 | K42: 160.00 | L42: 341.25 | M42: 341.25
A43: 7 | B43: 0.30 | C43: 30.00 | D43: 0 | E43: 0 | F43: 77.00 | G43: 51.00 | H43: 167.50 | I43: 0 | J43: 77.00 | K43: 128.00 | L43: 295.50 | M43: 295.50
A44: 8 | B44: 0.35 | C44: 35.00 | D44: 0 | E44: 0 | F44: 71.50 | G44: 34.50 | H44: 153.75 | I44: 0 | J44: 71.50 | K44: 106.00 | L44: 259.75 | M44: 259.75
A45: 9 | B45: 0.40 | C45: 40.00 | D45: 0 | E45: 0 | F45: 66.00 | G45: 18.00 | H45: 140.00 | I45: 0 | J45: 66.00 | K45: 84.00 | L45: 224.00 | M45: 224.00
A46: 10 | B46: 0.45 | C46: 45.00 | D46: 0 | E46: 0 | F46: 60.50 | G46: 1.50 | H46: 126.25 | I46: 0 | J46: 60.50 | K46: 62.00 | L46: 188.25 | M46: 188.25
A47: 11 | B47: 0.50 | C47: 50.00 | D47: =IF(D13>0,D13,0) -> 0 | E47: 0 | F47: 55.00 | G47: 0 | H47: 112.50 | I47: 0 | J47: 55.00 | K47: 55.00 | L47: 167.50 | M47: 167.50
A48: 12 | B48: 0.55 | C48: 55.00 | D48: 0 | E48: 0 | F48: 49.50 | G48: 0 | H48: 98.75 | I48: 0 | J48: 49.50 | K48: 49.50 | L48: 148.25 | M48: 148.25
A49: 13 | B49: 0.60 | C49: 60.00 | D49: 0 | E49: 0 | F49: 44.00 | G49: 0 | H49: 85.00 | I49: 0 | J49: 44.00 | K49: 44.00 | L49: 129.00 | M49: 129.00
A50: 14 | B50: 0.65 | C50: 65.00 | D50: 0 | E50: 0 | F50: 38.50 | G50: 0 | H50: 71.25 | I50: 0 | J50: 38.50 | K50: 38.50 | L50: 109.75 | M50: 109.75
A51: 15 | B51: 0.70 | C51: 70.00 | D51: 0 | E51: 0 | F51: 33.00 | G51: 0 | H51: 57.50 | I51: 0 | J51: 33.00 | K51: 33.00 | L51: 90.50 | M51: 90.50
A52: 16 | B52: 0.75 | C52: 75.00 | D52: 0 | E52: 0 | F52: 27.50 | G52: 0 | H52: 43.75 | I52: 0 | J52: 27.50 | K52: 27.50 | L52: 71.25 | M52: 71.25
A53: 17 | B53: 0.80 | C53: 80.00 | D53: 0 | E53: 0 | F53: 22.00 | G53: 0 | H53: 30.00 | I53: 0 | J53: 22.00 | K53: 22.00 | L53: 52.00 | M53: 52.00
A54: 18 | B54: 0.85 | C54: 85.00 | D54: 0 | E54: 0 | F54: 16.50 | G54: 0 | H54: 16.25 | I54: 0 | J54: 16.50 | K54: 16.50 | L54: 32.75 | M54: 32.75
A55: 19 | B55: 0.90 | C55: 90.00 | D55: 0 | E55: 0 | F55: 11.00 | G55: 0 | H55: 2.50 | I55: 0 | J55: 11.00 | K55: 11.00 | L55: 13.50 | M55: 13.50
A56: 20 | B56: 0.95 | C56: 95.00 | D56: =IF(D22>0,D22,0) -> 0 | E56: 0 | F56: 5.50 | G56: 0 | H56: 0 | I56: 0 | J56: 5.50 | K56: 5.50 | L56: 5.50 | M56: 5.50
A57: 21 | B57: 1.00 | C57: 100.00 | D57: 0 | E57: 0 | F57: 0 | G57: 0 | H57: 0 | I57: 0 | J57: 0 | K57: 0 | L57: 0 | M57: 0
